{"text_format":"1","workbook":"xlsx","n_sheets":4,"sheets":["Équipes","Horaires","Horaires (2)","Mode de fonctionnement"],"not_rendered":{"charts":0,"images":4,"macros":1,"external_links":0,"defined_names":15,"comments":4,"pivot_tables":0},"unopened":[],"bounds":{"document_bytes":16777216,"sheet_cells":100000,"rows_first":2000,"rows_last":500,"rows_between":2000,"halvings":0,"cell_chars":16384,"cell_head_chars":4096},"cells_cut":0,"cells_raw":0,"read":"whole","date_system":"1900"}

{"sheet":"Équipes","index":0,"n_rows":24,"n_cols":9,"rows_kept":24,"cut":false,"hidden":true,"merged":[[0,2,0,8],[24,5,24,6],[25,5,25,6],[26,5,26,6],[27,5,27,6],[23,5,23,8],[23,2,23,4],[1,0,1,8],[28,5,28,6],[29,5,29,6],[30,5,30,6],[24,7,24,8],[25,7,25,8],[26,7,26,8],[27,7,27,8],[28,7,28,8],[29,7,29,8],[30,7,30,8]]}
[null,null,"Ligue compétition mixte mardi de soir \nÉquipes"]
[{"$f":"Horaires!A2","v":"Saison 2021/22 Ronde-1: du 12 octobre au 24 janvier 2022 Compétition : Robin"}]
["Équipes",null,"Capitaines",null,"Troisièmes",null,"Deuxièmes",null,"Premiers"]
[{"$f":"IF($C4= \"\",\"\",\"A\"&ROW() -3)","v":"A1"},null,"Robert Cyr",null,"André Savard",null,"Robert Hamelin",null,"Jean Rémillard  *9"]
[{"$f":"IF($C5= \"\",\"\",\"A\"&ROW() -3)","v":"A2"},null,"Jacques Desharnais",null,"Michel Ayotte",null,"Luce Nepveu",null,"Jacques Gingras"]
["A3",null,"Roch Labelle",null,"Denis Pilote",null,"Danielle Beaudoin",null,"Jean Gadoury"]
["A4",null,"André Desjardins",null,"John Ellison",null,"Pierre Senécal",null,"Denis Cousineau"]
["A5",null,"Michel Beauchamp",null,"Yvon Grenier",null,"Michel Venditti  ",null,"Richard Turner"]
["A6",null,"Marcel Bréard",null,"Jean-Paul Roulier",null,"François Messier",null,"Pierre Lamontagne"]
["A7",null,"Pierre Pleau",null,"André Myre",null,"Alain Brunet",null,"Liette Grenier   "]
["A8",null,"Carol Belley",null,"Michel Jacques",null,"Roger Fortier",null,"Sylvain Brault  *12"]
["A9",null,"Gérald Meunier",null,"Jean Leclair",null,"Antonio Vicenzo",null,"Evelyne Henry"]
[]
[{"$f":"IF($C14= \"\",\"\",\"B\"&ROW() -13)","v":"B1"},null,"Marc Lambert",null,"Raymonde Jetté  ",null,"Michel Colin  ",null,"Sylvain Mercier   "]
[{"$f":"IF($C15= \"\",\"\",\"B\"&ROW() -13)","v":"B2"},null,"Barnabé",null,"Pierre Pleau    "]
["B3",null,"Barry Schreindorfer",null,"Richard Rousseau",null,"Jean Audet",null,"Lise O'Brien"]
["B4",null,"Robert Giguère",null,"Guy Messier ",null,"Gilles Béliveau",null,"Carmen Bourbeau  "]
["B5",null,"Robert Henry",null,"Robert Durivage",null,"Richard Lajeunesse",null,"Sylvie Bourdage"]
["B6",null,"Shirley Mc Whinnie",null,"Michel Legault",null,"Jean-Pierre Lacroix",null,"Peter Brunet"]
["B7",null,"Casagrande",null,"Roch Labelle"]
["B8",null,"Olivar Belley",null,"Louis Metcalfe  ",null,"Bernard Crevier",null,"Josette Vittecoq"]
["B9",null,"Jacques Richard",null,"Paul-Emile Bédard",null,"Claude Nadeau",null,"Robert Legrand"]
[]
[null,null,"Contraintes :",null,null,"Substituts :"]

{"sheet":"Horaires","index":1,"n_rows":85,"n_cols":11,"rows_kept":85,"cut":false,"hidden":false,"merged":[[0,0,0,10],[1,0,1,10]]}
["\nLigue compétition mixte mardi de soir \nHoraires\n"]
[{"$f":"\"Saison \"&YEAR(D3)&\"/\"&RIGHT(YEAR(D3)+1,2)& \" Ronde-\"&B3 & \": du \"&TEXT(A7,\"jj\") & \" \" & TEXT(A7,\"mmmm\") & \" au \" & TEXT(MAX(A3:A82),\"jj\") & \" \" &TEXT(MAX(A3:A82),\"mmmm\") & \" \" & YEAR(MAX(A3:A82))& \" Compétition : \"&C3","v":"Saison 2021/22 Ronde-1: du 12 octobre au 24 janvier 2022 Compétition : Robin"}]
[null,1,"Robin","2021-10-12"]
[]
["Date ","Heure","Équipes","Glace - 1","Points","Équipes","Glace - 2","Points","Équipes","Glace - 3","Points"]
[null,null,null,{"$f":"SUM(E7:E45,H7:H45,K7:K45)","v":0}]
["2021-10-12","19:00:00",null,{"$f":"IF(C7=\"\",\"\",VLOOKUP(C7,Équipes!$A:$C,3,FALSE))","v":""},null,null,{"$f":"IF(F7=\"\",\"\",VLOOKUP(F7,Équipes!$A:$C,3,FALSE))","v":""},null,null,{"$f":"IF(I7=\"\",\"\",VLOOKUP(I7,Équipes!$A:$C,3,FALSE))","v":""}]
[null,null,null,{"$f":"IF(C8=\"\",\"\",VLOOKUP(C8,Équipes!$A:$C,3,FALSE))","v":""},null,null,{"$f":"IF(F8=\"\",\"\",VLOOKUP(F8,Équipes!$A:$C,3,FALSE))","v":""},null,null,{"$f":"IF(I8=\"\",\"\",VLOOKUP(I8,Équipes!$A:$C,3,FALSE))","v":""}]
[null,"21:00:00",null,{"$f":"IF(C9=\"\",\"\",VLOOKUP(C9,Équipes!$A:$C,3,FALSE))","v":""},null,null,{"$f":"IF(F9=\"\",\"\",VLOOKUP(F9,Équipes!$A:$C,3,FALSE))","v":""},null,null,{"$f":"IF(I9=\"\",\"\",VLOOKUP(I9,Équipes!$A:$C,3,FALSE))","v":""}]
[null,null,null,{"$f":"IF(C10=\"\",\"\",VLOOKUP(C10,Équipes!$A:$C,3,FALSE))","v":""},null,null,{"$f":"IF(F10=\"\",\"\",VLOOKUP(F10,Équipes!$A:$C,3,FALSE))","v":""},null,null,{"$f":"IF(I10=\"\",\"\",VLOOKUP(I10,Équipes!$A:$C,3,FALSE))","v":""}]
[null,null,null,{"$f":"IF(C11=\"\",\"\",VLOOKUP(C11,Équipes!$A:$C,3,FALSE))","v":""},null,null,{"$f":"IF(F11=\"\",\"\",VLOOKUP(F11,Équipes!$A:$C,3,FALSE))","v":""},null,null,{"$f":"IF(I11=\"\",\"\",VLOOKUP(I11,Équipes!$A:$C,3,FALSE))","v":""}]
["2021-10-18","19:00:00",null,{"$f":"IF(C12=\"\",\"\",VLOOKUP(C12,Équipes!$A:$C,3,FALSE))","v":""},null,null,{"$f":"IF(F12=\"\",\"\",VLOOKUP(F12,Équipes!$A:$C,3,FALSE))","v":""},null,null,{"$f":"IF(I12=\"\",\"\",VLOOKUP(I12,Équipes!$A:$C,3,FALSE))","v":""}]
[null,null,null,{"$f":"IF(C13=\"\",\"\",VLOOKUP(C13,Équipes!$A:$C,3,FALSE))","v":""},null,null,{"$f":"IF(F13=\"\",\"\",VLOOKUP(F13,Équipes!$A:$C,3,FALSE))","v":""},null,null,{"$f":"IF(I13=\"\",\"\",VLOOKUP(I13,Équipes!$A:$C,3,FALSE))","v":""}]
[null,"21:00:00",null,{"$f":"IF(C14=\"\",\"\",VLOOKUP(C14,Équipes!$A:$C,3,FALSE))","v":""},null,null,{"$f":"IF(F14=\"\",\"\",VLOOKUP(F14,Équipes!$A:$C,3,FALSE))","v":""},null,null,{"$f":"IF(I14=\"\",\"\",VLOOKUP(I14,Équipes!$A:$C,3,FALSE))","v":""}]
[null,null,null,{"$f":"IF(C15=\"\",\"\",VLOOKUP(C15,Équipes!$A:$C,3,FALSE))","v":""},null,null,{"$f":"IF(F15=\"\",\"\",VLOOKUP(F15,Équipes!$A:$C,3,FALSE))","v":""},null,null,{"$f":"IF(I15=\"\",\"\",VLOOKUP(I15,Équipes!$A:$C,3,FALSE))","v":""}]
[null,null,null,{"$f":"IF(C16=\"\",\"\",VLOOKUP(C16,Équipes!$A:$C,3,FALSE))","v":""},null,null,{"$f":"IF(F16=\"\",\"\",VLOOKUP(F16,Équipes!$A:$C,3,FALSE))","v":""},null,null,{"$f":"IF(I16=\"\",\"\",VLOOKUP(I16,Équipes!$A:$C,3,FALSE))","v":""}]
["2021-10-26","19:00:00",null,{"$f":"IF(C17=\"\",\"\",VLOOKUP(C17,Équipes!$A:$C,3,FALSE))","v":""},null,null,{"$f":"IF(F17=\"\",\"\",VLOOKUP(F17,Équipes!$A:$C,3,FALSE))","v":""},null,null,{"$f":"IF(I17=\"\",\"\",VLOOKUP(I17,Équipes!$A:$C,3,FALSE))","v":""}]
[null,null,null,{"$f":"IF(C18=\"\",\"\",VLOOKUP(C18,Équipes!$A:$C,3,FALSE))","v":""},null,null,{"$f":"IF(F18=\"\",\"\",VLOOKUP(F18,Équipes!$A:$C,3,FALSE))","v":""},null,null,{"$f":"IF(I18=\"\",\"\",VLOOKUP(I18,Équipes!$A:$C,3,FALSE))","v":""}]
[null,"21:00:00",null,{"$f":"IF(C19=\"\",\"\",VLOOKUP(C19,Équipes!$A:$C,3,FALSE))","v":""},null,null,{"$f":"IF(F19=\"\",\"\",VLOOKUP(F19,Équipes!$A:$C,3,FALSE))","v":""},null,null,{"$f":"IF(I19=\"\",\"\",VLOOKUP(I19,Équipes!$A:$C,3,FALSE))","v":""}]
[null,null,null,{"$f":"IF(C20=\"\",\"\",VLOOKUP(C20,Équipes!$A:$C,3,FALSE))","v":""},null,null,{"$f":"IF(F20=\"\",\"\",VLOOKUP(F20,Équipes!$A:$C,3,FALSE))","v":""},null,null,{"$f":"IF(I20=\"\",\"\",VLOOKUP(I20,Équipes!$A:$C,3,FALSE))","v":""}]
[null,null,null,{"$f":"IF(C21=\"\",\"\",VLOOKUP(C21,Équipes!$A:$C,3,FALSE))","v":""},null,null,{"$f":"IF(F21=\"\",\"\",VLOOKUP(F21,Équipes!$A:$C,3,FALSE))","v":""},null,null,{"$f":"IF(I21=\"\",\"\",VLOOKUP(I21,Équipes!$A:$C,3,FALSE))","v":""}]
["2021-11-01","19:00:00",null,{"$f":"IF(C22=\"\",\"\",VLOOKUP(C22,Équipes!$A:$C,3,FALSE))","v":""},null,null,{"$f":"IF(F22=\"\",\"\",VLOOKUP(F22,Équipes!$A:$C,3,FALSE))","v":""},null,null,{"$f":"IF(I22=\"\",\"\",VLOOKUP(I22,Équipes!$A:$C,3,FALSE))","v":""}]
[null,null,null,{"$f":"IF(C23=\"\",\"\",VLOOKUP(C23,Équipes!$A:$C,3,FALSE))","v":""},null,null,{"$f":"IF(F23=\"\",\"\",VLOOKUP(F23,Équipes!$A:$C,3,FALSE))","v":""},null,null,{"$f":"IF(I23=\"\",\"\",VLOOKUP(I23,Équipes!$A:$C,3,FALSE))","v":""}]
[null,"21:00:00",null,{"$f":"IF(C24=\"\",\"\",VLOOKUP(C24,Équipes!$A:$C,3,FALSE))","v":""},null,null,{"$f":"IF(F24=\"\",\"\",VLOOKUP(F24,Équipes!$A:$C,3,FALSE))","v":""},null,null,{"$f":"IF(I24=\"\",\"\",VLOOKUP(I24,Équipes!$A:$C,3,FALSE))","v":""}]
[null,null,null,{"$f":"IF(C25=\"\",\"\",VLOOKUP(C25,Équipes!$A:$C,3,FALSE))","v":""},null,null,{"$f":"IF(F25=\"\",\"\",VLOOKUP(F25,Équipes!$A:$C,3,FALSE))","v":""},null,null,{"$f":"IF(I25=\"\",\"\",VLOOKUP(I25,Équipes!$A:$C,3,FALSE))","v":""}]
[null,null,null,{"$f":"IF(C26=\"\",\"\",VLOOKUP(C26,Équipes!$A:$C,3,FALSE))","v":""},null,null,{"$f":"IF(F26=\"\",\"\",VLOOKUP(F26,Équipes!$A:$C,3,FALSE))","v":""},null,null,{"$f":"IF(I26=\"\",\"\",VLOOKUP(I26,Équipes!$A:$C,3,FALSE))","v":""}]
["2021-11-09","19:00:00",null,{"$f":"IF(C27=\"\",\"\",VLOOKUP(C27,Équipes!$A:$C,3,FALSE))","v":""},null,null,{"$f":"IF(F27=\"\",\"\",VLOOKUP(F27,Équipes!$A:$C,3,FALSE))","v":""},null,null,{"$f":"IF(I27=\"\",\"\",VLOOKUP(I27,Équipes!$A:$C,3,FALSE))","v":""}]
[null,null,null,{"$f":"IF(C28=\"\",\"\",VLOOKUP(C28,Équipes!$A:$C,3,FALSE))","v":""},null,null,{"$f":"IF(F28=\"\",\"\",VLOOKUP(F28,Équipes!$A:$C,3,FALSE))","v":""},null,null,{"$f":"IF(I28=\"\",\"\",VLOOKUP(I28,Équipes!$A:$C,3,FALSE))","v":""}]
[null,"21:00:00",null,{"$f":"IF(C29=\"\",\"\",VLOOKUP(C29,Équipes!$A:$C,3,FALSE))","v":""},null,null,{"$f":"IF(F29=\"\",\"\",VLOOKUP(F29,Équipes!$A:$C,3,FALSE))","v":""},null,null,{"$f":"IF(I29=\"\",\"\",VLOOKUP(I29,Équipes!$A:$C,3,FALSE))","v":""}]
[null,null,null,{"$f":"IF(C30=\"\",\"\",VLOOKUP(C30,Équipes!$A:$C,3,FALSE))","v":""},null,null,{"$f":"IF(F30=\"\",\"\",VLOOKUP(F30,Équipes!$A:$C,3,FALSE))","v":""},null,null,{"$f":"IF(I30=\"\",\"\",VLOOKUP(I30,Équipes!$A:$C,3,FALSE))","v":""}]
[null,null,null,{"$f":"IF(C31=\"\",\"\",VLOOKUP(C31,Équipes!$A:$C,3,FALSE))","v":""},null,null,{"$f":"IF(F31=\"\",\"\",VLOOKUP(F31,Équipes!$A:$C,3,FALSE))","v":""},null,null,{"$f":"IF(I31=\"\",\"\",VLOOKUP(I31,Équipes!$A:$C,3,FALSE))","v":""}]
["2021-11-15","19:00:00",null,{"$f":"IF(C32=\"\",\"\",VLOOKUP(C32,Équipes!$A:$C,3,FALSE))","v":""},null,null,{"$f":"IF(F32=\"\",\"\",VLOOKUP(F32,Équipes!$A:$C,3,FALSE))","v":""},null,null,{"$f":"IF(I32=\"\",\"\",VLOOKUP(I32,Équipes!$A:$C,3,FALSE))","v":""}]
[null,null,null,{"$f":"IF(C33=\"\",\"\",VLOOKUP(C33,Équipes!$A:$C,3,FALSE))","v":""},null,null,{"$f":"IF(F33=\"\",\"\",VLOOKUP(F33,Équipes!$A:$C,3,FALSE))","v":""},null,null,{"$f":"IF(I33=\"\",\"\",VLOOKUP(I33,Équipes!$A:$C,3,FALSE))","v":""}]
[null,"21:00:00",null,{"$f":"IF(C34=\"\",\"\",VLOOKUP(C34,Équipes!$A:$C,3,FALSE))","v":""},null,null,{"$f":"IF(F34=\"\",\"\",VLOOKUP(F34,Équipes!$A:$C,3,FALSE))","v":""},null,null,{"$f":"IF(I34=\"\",\"\",VLOOKUP(I34,Équipes!$A:$C,3,FALSE))","v":""}]
[null,null,null,{"$f":"IF(C35=\"\",\"\",VLOOKUP(C35,Équipes!$A:$C,3,FALSE))","v":""},null,null,{"$f":"IF(F35=\"\",\"\",VLOOKUP(F35,Équipes!$A:$C,3,FALSE))","v":""},null,null,{"$f":"IF(I35=\"\",\"\",VLOOKUP(I35,Équipes!$A:$C,3,FALSE))","v":""}]
[null,null,null,{"$f":"IF(C36=\"\",\"\",VLOOKUP(C36,Équipes!$A:$C,3,FALSE))","v":""},null,null,{"$f":"IF(F36=\"\",\"\",VLOOKUP(F36,Équipes!$A:$C,3,FALSE))","v":""},null,null,{"$f":"IF(I36=\"\",\"\",VLOOKUP(I36,Équipes!$A:$C,3,FALSE))","v":""}]
["2021-11-23","19:00:00",null,{"$f":"IF(C37=\"\",\"\",VLOOKUP(C37,Équipes!$A:$C,3,FALSE))","v":""},null,null,{"$f":"IF(F37=\"\",\"\",VLOOKUP(F37,Équipes!$A:$C,3,FALSE))","v":""},null,null,{"$f":"IF(I37=\"\",\"\",VLOOKUP(I37,Équipes!$A:$C,3,FALSE))","v":""}]
[null,null,null,{"$f":"IF(C38=\"\",\"\",VLOOKUP(C38,Équipes!$A:$C,3,FALSE))","v":""},null,null,{"$f":"IF(F38=\"\",\"\",VLOOKUP(F38,Équipes!$A:$C,3,FALSE))","v":""},null,null,{"$f":"IF(I38=\"\",\"\",VLOOKUP(I38,Équipes!$A:$C,3,FALSE))","v":""}]
[null,"21:00:00",null,{"$f":"IF(C39=\"\",\"\",VLOOKUP(C39,Équipes!$A:$C,3,FALSE))","v":""},null,null,{"$f":"IF(F39=\"\",\"\",VLOOKUP(F39,Équipes!$A:$C,3,FALSE))","v":""},null,null,{"$f":"IF(I39=\"\",\"\",VLOOKUP(I39,Équipes!$A:$C,3,FALSE))","v":""}]
[null,null,null,{"$f":"IF(C40=\"\",\"\",VLOOKUP(C40,Équipes!$A:$C,3,FALSE))","v":""},null,null,{"$f":"IF(F40=\"\",\"\",VLOOKUP(F40,Équipes!$A:$C,3,FALSE))","v":""},null,null,{"$f":"IF(I40=\"\",\"\",VLOOKUP(I40,Équipes!$A:$C,3,FALSE))","v":""}]
[null,null,null,{"$f":"IF(C41=\"\",\"\",VLOOKUP(C41,Équipes!$A:$C,3,FALSE))","v":""},null,null,{"$f":"IF(F41=\"\",\"\",VLOOKUP(F41,Équipes!$A:$C,3,FALSE))","v":""},null,null,{"$f":"IF(I41=\"\",\"\",VLOOKUP(I41,Équipes!$A:$C,3,FALSE))","v":""}]
["2021-11-29","19:00:00",null,{"$f":"IF(C42=\"\",\"\",VLOOKUP(C42,Équipes!$A:$C,3,FALSE))","v":""},null,null,{"$f":"IF(F42=\"\",\"\",VLOOKUP(F42,Équipes!$A:$C,3,FALSE))","v":""},null,null,{"$f":"IF(I42=\"\",\"\",VLOOKUP(I42,Équipes!$A:$C,3,FALSE))","v":""}]
[null,null,null,{"$f":"IF(C43=\"\",\"\",VLOOKUP(C43,Équipes!$A:$C,3,FALSE))","v":""},null,null,{"$f":"IF(F43=\"\",\"\",VLOOKUP(F43,Équipes!$A:$C,3,FALSE))","v":""},null,null,{"$f":"IF(I43=\"\",\"\",VLOOKUP(I43,Équipes!$A:$C,3,FALSE))","v":""}]
[null,"21:00:00",null,{"$f":"IF(C44=\"\",\"\",VLOOKUP(C44,Équipes!$A:$C,3,FALSE))","v":""},null,null,{"$f":"IF(F44=\"\",\"\",VLOOKUP(F44,Équipes!$A:$C,3,FALSE))","v":""},null,null,{"$f":"IF(I44=\"\",\"\",VLOOKUP(I44,Équipes!$A:$C,3,FALSE))","v":""}]
[null,null,null,{"$f":"IF(C45=\"\",\"\",VLOOKUP(C45,Équipes!$A:$C,3,FALSE))","v":""},null,null,{"$f":"IF(F45=\"\",\"\",VLOOKUP(F45,Équipes!$A:$C,3,FALSE))","v":""},null,null,{"$f":"IF(I45=\"\",\"\",VLOOKUP(I45,Équipes!$A:$C,3,FALSE))","v":""}]
[null,null,null,{"$f":"SUM(E47:E85,H47:H85,K47:K85)","v":0}]
["2021-12-07","19:00:00",null,{"$f":"IF(C47=\"\",\"\",VLOOKUP(C47,Équipes!$A:$C,3,FALSE))","v":""},null,null,{"$f":"IF(F47=\"\",\"\",VLOOKUP(F47,Équipes!$A:$C,3,FALSE))","v":""},null,null,{"$f":"IF(I47=\"\",\"\",VLOOKUP(I47,Équipes!$A:$C,3,FALSE))","v":""}]
[null,null,null,{"$f":"IF(C48=\"\",\"\",VLOOKUP(C48,Équipes!$A:$C,3,FALSE))","v":""},null,null,{"$f":"IF(F48=\"\",\"\",VLOOKUP(F48,Équipes!$A:$C,3,FALSE))","v":""},null,null,{"$f":"IF(I48=\"\",\"\",VLOOKUP(I48,Équipes!$A:$C,3,FALSE))","v":""}]
[null,"21:00:00",null,{"$f":"IF(C49=\"\",\"\",VLOOKUP(C49,Équipes!$A:$C,3,FALSE))","v":""},null,null,{"$f":"IF(F49=\"\",\"\",VLOOKUP(F49,Équipes!$A:$C,3,FALSE))","v":""},null,null,{"$f":"IF(I49=\"\",\"\",VLOOKUP(I49,Équipes!$A:$C,3,FALSE))","v":""}]
[null,null,null,{"$f":"IF(C50=\"\",\"\",VLOOKUP(C50,Équipes!$A:$C,3,FALSE))","v":""},null,null,{"$f":"IF(F50=\"\",\"\",VLOOKUP(F50,Équipes!$A:$C,3,FALSE))","v":""},null,null,{"$f":"IF(I50=\"\",\"\",VLOOKUP(I50,Équipes!$A:$C,3,FALSE))","v":""}]
[null,null,null,{"$f":"IF(C51=\"\",\"\",VLOOKUP(C51,Équipes!$A:$C,3,FALSE))","v":""},null,null,{"$f":"IF(F51=\"\",\"\",VLOOKUP(F51,Équipes!$A:$C,3,FALSE))","v":""},null,null,{"$f":"IF(I51=\"\",\"\",VLOOKUP(I51,Équipes!$A:$C,3,FALSE))","v":""}]
["2021-12-13","19:00:00",null,{"$f":"IF(C52=\"\",\"\",VLOOKUP(C52,Équipes!$A:$C,3,FALSE))","v":""},null,null,{"$f":"IF(F52=\"\",\"\",VLOOKUP(F52,Équipes!$A:$C,3,FALSE))","v":""},null,null,{"$f":"IF(I52=\"\",\"\",VLOOKUP(I52,Équipes!$A:$C,3,FALSE))","v":""}]
[null,null,null,{"$f":"IF(C53=\"\",\"\",VLOOKUP(C53,Équipes!$A:$C,3,FALSE))","v":""},null,null,{"$f":"IF(F53=\"\",\"\",VLOOKUP(F53,Équipes!$A:$C,3,FALSE))","v":""},null,null,{"$f":"IF(I53=\"\",\"\",VLOOKUP(I53,Équipes!$A:$C,3,FALSE))","v":""}]
[null,"21:00:00",null,{"$f":"IF(C54=\"\",\"\",VLOOKUP(C54,Équipes!$A:$C,3,FALSE))","v":""},null,null,{"$f":"IF(F54=\"\",\"\",VLOOKUP(F54,Équipes!$A:$C,3,FALSE))","v":""},null,null,{"$f":"IF(I54=\"\",\"\",VLOOKUP(I54,Équipes!$A:$C,3,FALSE))","v":""}]
[null,null,null,{"$f":"IF(C55=\"\",\"\",VLOOKUP(C55,Équipes!$A:$C,3,FALSE))","v":""},null,null,{"$f":"IF(F55=\"\",\"\",VLOOKUP(F55,Équipes!$A:$C,3,FALSE))","v":""},null,null,{"$f":"IF(I55=\"\",\"\",VLOOKUP(I55,Équipes!$A:$C,3,FALSE))","v":""}]
[null,null,null,{"$f":"IF(C56=\"\",\"\",VLOOKUP(C56,Équipes!$A:$C,3,FALSE))","v":""},null,null,{"$f":"IF(F56=\"\",\"\",VLOOKUP(F56,Équipes!$A:$C,3,FALSE))","v":""},null,null,{"$f":"IF(I56=\"\",\"\",VLOOKUP(I56,Équipes!$A:$C,3,FALSE))","v":""}]
["2021-12-21","19:00:00",null,{"$f":"IF(C57=\"\",\"\",VLOOKUP(C57,Équipes!$A:$C,3,FALSE))","v":""},null,null,{"$f":"IF(F57=\"\",\"\",VLOOKUP(F57,Équipes!$A:$C,3,FALSE))","v":""},null,null,{"$f":"IF(I57=\"\",\"\",VLOOKUP(I57,Équipes!$A:$C,3,FALSE))","v":""}]
[null,null,null,{"$f":"IF(C58=\"\",\"\",VLOOKUP(C58,Équipes!$A:$C,3,FALSE))","v":""},null,null,{"$f":"IF(F58=\"\",\"\",VLOOKUP(F58,Équipes!$A:$C,3,FALSE))","v":""},null,null,{"$f":"IF(I58=\"\",\"\",VLOOKUP(I58,Équipes!$A:$C,3,FALSE))","v":""}]
[null,"21:00:00",null,{"$f":"IF(C59=\"\",\"\",VLOOKUP(C59,Équipes!$A:$C,3,FALSE))","v":""},null,null,{"$f":"IF(F59=\"\",\"\",VLOOKUP(F59,Équipes!$A:$C,3,FALSE))","v":""},null,null,{"$f":"IF(I59=\"\",\"\",VLOOKUP(I59,Équipes!$A:$C,3,FALSE))","v":""}]
[null,null,null,{"$f":"IF(C60=\"\",\"\",VLOOKUP(C60,Équipes!$A:$C,3,FALSE))","v":""},null,null,{"$f":"IF(F60=\"\",\"\",VLOOKUP(F60,Équipes!$A:$C,3,FALSE))","v":""},null,null,{"$f":"IF(I60=\"\",\"\",VLOOKUP(I60,Équipes!$A:$C,3,FALSE))","v":""}]
[null,null,null,{"$f":"IF(C61=\"\",\"\",VLOOKUP(C61,Équipes!$A:$C,3,FALSE))","v":""},null,null,{"$f":"IF(F61=\"\",\"\",VLOOKUP(F61,Équipes!$A:$C,3,FALSE))","v":""},null,null,{"$f":"IF(I61=\"\",\"\",VLOOKUP(I61,Équipes!$A:$C,3,FALSE))","v":""}]
["2021-12-27","19:00:00",null,{"$f":"IF(C62=\"\",\"\",VLOOKUP(C62,Équipes!$A:$C,3,FALSE))","v":""},null,null,{"$f":"IF(F62=\"\",\"\",VLOOKUP(F62,Équipes!$A:$C,3,FALSE))","v":""},null,null,{"$f":"IF(I62=\"\",\"\",VLOOKUP(I62,Équipes!$A:$C,3,FALSE))","v":""}]
[null,null,null,{"$f":"IF(C63=\"\",\"\",VLOOKUP(C63,Équipes!$A:$C,3,FALSE))","v":""},null,null,{"$f":"IF(F63=\"\",\"\",VLOOKUP(F63,Équipes!$A:$C,3,FALSE))","v":""},null,null,{"$f":"IF(I63=\"\",\"\",VLOOKUP(I63,Équipes!$A:$C,3,FALSE))","v":""}]
[null,"21:00:00",null,{"$f":"IF(C64=\"\",\"\",VLOOKUP(C64,Équipes!$A:$C,3,FALSE))","v":""},null,null,{"$f":"IF(F64=\"\",\"\",VLOOKUP(F64,Équipes!$A:$C,3,FALSE))","v":""},null,null,{"$f":"IF(I64=\"\",\"\",VLOOKUP(I64,Équipes!$A:$C,3,FALSE))","v":""}]
[null,null,null,{"$f":"IF(C65=\"\",\"\",VLOOKUP(C65,Équipes!$A:$C,3,FALSE))","v":""},null,null,{"$f":"IF(F65=\"\",\"\",VLOOKUP(F65,Équipes!$A:$C,3,FALSE))","v":""},null,null,{"$f":"IF(I65=\"\",\"\",VLOOKUP(I65,Équipes!$A:$C,3,FALSE))","v":""}]
[null,null,null,{"$f":"IF(C66=\"\",\"\",VLOOKUP(C66,Équipes!$A:$C,3,FALSE))","v":""},null,null,{"$f":"IF(F66=\"\",\"\",VLOOKUP(F66,Équipes!$A:$C,3,FALSE))","v":""},null,null,{"$f":"IF(I66=\"\",\"\",VLOOKUP(I66,Équipes!$A:$C,3,FALSE))","v":""}]
["2022-01-04","19:00:00",null,{"$f":"IF(C67=\"\",\"\",VLOOKUP(C67,Équipes!$A:$C,3,FALSE))","v":""},null,null,{"$f":"IF(F67=\"\",\"\",VLOOKUP(F67,Équipes!$A:$C,3,FALSE))","v":""},null,null,{"$f":"IF(I67=\"\",\"\",VLOOKUP(I67,Équipes!$A:$C,3,FALSE))","v":""}]
[null,null,null,{"$f":"IF(C68=\"\",\"\",VLOOKUP(C68,Équipes!$A:$C,3,FALSE))","v":""},null,null,{"$f":"IF(F68=\"\",\"\",VLOOKUP(F68,Équipes!$A:$C,3,FALSE))","v":""},null,null,{"$f":"IF(I68=\"\",\"\",VLOOKUP(I68,Équipes!$A:$C,3,FALSE))","v":""}]
[null,"21:00:00",null,{"$f":"IF(C69=\"\",\"\",VLOOKUP(C69,Équipes!$A:$C,3,FALSE))","v":""},null,null,{"$f":"IF(F69=\"\",\"\",VLOOKUP(F69,Équipes!$A:$C,3,FALSE))","v":""},null,null,{"$f":"IF(I69=\"\",\"\",VLOOKUP(I69,Équipes!$A:$C,3,FALSE))","v":""}]
[null,null,null,{"$f":"IF(C70=\"\",\"\",VLOOKUP(C70,Équipes!$A:$C,3,FALSE))","v":""},null,null,{"$f":"IF(F70=\"\",\"\",VLOOKUP(F70,Équipes!$A:$C,3,FALSE))","v":""},null,null,{"$f":"IF(I70=\"\",\"\",VLOOKUP(I70,Équipes!$A:$C,3,FALSE))","v":""}]
[null,null,null,{"$f":"IF(C71=\"\",\"\",VLOOKUP(C71,Équipes!$A:$C,3,FALSE))","v":""},null,null,{"$f":"IF(F71=\"\",\"\",VLOOKUP(F71,Équipes!$A:$C,3,FALSE))","v":""},null,null,{"$f":"IF(I71=\"\",\"\",VLOOKUP(I71,Équipes!$A:$C,3,FALSE))","v":""}]
["2022-01-10","19:00:00",null,{"$f":"IF(C72=\"\",\"\",VLOOKUP(C72,Équipes!$A:$C,3,FALSE))","v":""},null,null,{"$f":"IF(F72=\"\",\"\",VLOOKUP(F72,Équipes!$A:$C,3,FALSE))","v":""},null,null,{"$f":"IF(I72=\"\",\"\",VLOOKUP(I72,Équipes!$A:$C,3,FALSE))","v":""}]
[null,null,null,{"$f":"IF(C73=\"\",\"\",VLOOKUP(C73,Équipes!$A:$C,3,FALSE))","v":""},null,null,{"$f":"IF(F73=\"\",\"\",VLOOKUP(F73,Équipes!$A:$C,3,FALSE))","v":""},null,null,{"$f":"IF(I73=\"\",\"\",VLOOKUP(I73,Équipes!$A:$C,3,FALSE))","v":""}]
[null,"21:00:00",null,{"$f":"IF(C74=\"\",\"\",VLOOKUP(C74,Équipes!$A:$C,3,FALSE))","v":""},null,null,{"$f":"IF(F74=\"\",\"\",VLOOKUP(F74,Équipes!$A:$C,3,FALSE))","v":""},null,null,{"$f":"IF(I74=\"\",\"\",VLOOKUP(I74,Équipes!$A:$C,3,FALSE))","v":""}]
[null,null,null,{"$f":"IF(C75=\"\",\"\",VLOOKUP(C75,Équipes!$A:$C,3,FALSE))","v":""},null,null,{"$f":"IF(F75=\"\",\"\",VLOOKUP(F75,Équipes!$A:$C,3,FALSE))","v":""},null,null,{"$f":"IF(I75=\"\",\"\",VLOOKUP(I75,Équipes!$A:$C,3,FALSE))","v":""}]
[null,null,null,{"$f":"IF(C76=\"\",\"\",VLOOKUP(C76,Équipes!$A:$C,3,FALSE))","v":""},null,null,{"$f":"IF(F76=\"\",\"\",VLOOKUP(F76,Équipes!$A:$C,3,FALSE))","v":""},null,null,{"$f":"IF(I76=\"\",\"\",VLOOKUP(I76,Équipes!$A:$C,3,FALSE))","v":""}]
["2022-01-18","19:00:00",null,{"$f":"IF(C77=\"\",\"\",VLOOKUP(C77,Équipes!$A:$C,3,FALSE))","v":""},null,null,{"$f":"IF(F77=\"\",\"\",VLOOKUP(F77,Équipes!$A:$C,3,FALSE))","v":""},null,null,{"$f":"IF(I77=\"\",\"\",VLOOKUP(I77,Équipes!$A:$C,3,FALSE))","v":""}]
[null,null,null,{"$f":"IF(C78=\"\",\"\",VLOOKUP(C78,Équipes!$A:$C,3,FALSE))","v":""},null,null,{"$f":"IF(F78=\"\",\"\",VLOOKUP(F78,Équipes!$A:$C,3,FALSE))","v":""},null,null,{"$f":"IF(I78=\"\",\"\",VLOOKUP(I78,Équipes!$A:$C,3,FALSE))","v":""}]
[null,"21:00:00",null,{"$f":"IF(C79=\"\",\"\",VLOOKUP(C79,Équipes!$A:$C,3,FALSE))","v":""},null,null,{"$f":"IF(F79=\"\",\"\",VLOOKUP(F79,Équipes!$A:$C,3,FALSE))","v":""},null,null,{"$f":"IF(I79=\"\",\"\",VLOOKUP(I79,Équipes!$A:$C,3,FALSE))","v":""}]
[null,null,null,{"$f":"IF(C80=\"\",\"\",VLOOKUP(C80,Équipes!$A:$C,3,FALSE))","v":""},null,null,{"$f":"IF(F80=\"\",\"\",VLOOKUP(F80,Équipes!$A:$C,3,FALSE))","v":""},null,null,{"$f":"IF(I80=\"\",\"\",VLOOKUP(I80,Équipes!$A:$C,3,FALSE))","v":""}]
[null,null,null,{"$f":"IF(C81=\"\",\"\",VLOOKUP(C81,Équipes!$A:$C,3,FALSE))","v":""},null,null,{"$f":"IF(F81=\"\",\"\",VLOOKUP(F81,Équipes!$A:$C,3,FALSE))","v":""},null,null,{"$f":"IF(I81=\"\",\"\",VLOOKUP(I81,Équipes!$A:$C,3,FALSE))","v":""}]
["2022-01-24","19:00:00",null,{"$f":"IF(C82=\"\",\"\",VLOOKUP(C82,Équipes!$A:$C,3,FALSE))","v":""},null,null,{"$f":"IF(F82=\"\",\"\",VLOOKUP(F82,Équipes!$A:$C,3,FALSE))","v":""},null,null,{"$f":"IF(I82=\"\",\"\",VLOOKUP(I82,Équipes!$A:$C,3,FALSE))","v":""}]
[null,null,null,{"$f":"IF(C83=\"\",\"\",VLOOKUP(C83,Équipes!$A:$C,3,FALSE))","v":""},null,null,{"$f":"IF(F83=\"\",\"\",VLOOKUP(F83,Équipes!$A:$C,3,FALSE))","v":""},null,null,{"$f":"IF(I83=\"\",\"\",VLOOKUP(I83,Équipes!$A:$C,3,FALSE))","v":""}]
[null,"21:00:00",null,{"$f":"IF(C84=\"\",\"\",VLOOKUP(C84,Équipes!$A:$C,3,FALSE))","v":""},null,null,{"$f":"IF(F84=\"\",\"\",VLOOKUP(F84,Équipes!$A:$C,3,FALSE))","v":""},null,null,{"$f":"IF(I84=\"\",\"\",VLOOKUP(I84,Équipes!$A:$C,3,FALSE))","v":""}]
[null,null,null,{"$f":"IF(C85=\"\",\"\",VLOOKUP(C85,Équipes!$A:$C,3,FALSE))","v":""},null,null,{"$f":"IF(F85=\"\",\"\",VLOOKUP(F85,Équipes!$A:$C,3,FALSE))","v":""},null,null,{"$f":"IF(I85=\"\",\"\",VLOOKUP(I85,Équipes!$A:$C,3,FALSE))","v":""}]

{"sheet":"Horaires (2)","index":2,"n_rows":69,"n_cols":11,"rows_kept":69,"cut":false,"hidden":false,"merged":[[0,0,0,10],[1,0,1,10]]}
["\nLigue compétition mixte mardi de soir \nHoraires\n"]
[{"$f":"\"Saison \"&YEAR(D3)&\"/\"&RIGHT(YEAR(D3)+1,2)& \" Ronde-\"&B3 & \": du \"&TEXT(A7,\"jj\") & \" \" & TEXT(A7,\"mmmm\") & \" au \" & TEXT(MAX(A3:A68),\"jj\") & \" \" &TEXT(MAX(A3:A68),\"mmmm\") & \" \" & YEAR(MAX(A3:A68))& \" Compétition : \"&C3","v":"Saison 2021/22 Ronde-1: du 12 octobre au 06 décembre 2021 Compétition : Robin"}]
[null,1,"Robin","2021-10-12"]
[]
["Date ","Heure","Équipes","Glace - 1","Points","Équipes","Glace - 2","Points","Équipes","Glace - 3","Points"]
[null,null,null,{"$f":"SUM(E7:E37,H7:H37,K7:K37)","v":0}]
["2021-10-12","19:00:00",null,{"$f":"IF(C7=\"\",\"\",VLOOKUP(C7,Équipes!$A:$C,3,FALSE))","v":""},null,null,{"$f":"IF(F7=\"\",\"\",VLOOKUP(F7,Équipes!$A:$C,3,FALSE))","v":""},null,null,{"$f":"IF(I7=\"\",\"\",VLOOKUP(I7,Équipes!$A:$C,3,FALSE))","v":""}]
[null,null,null,{"$f":"IF(C8=\"\",\"\",VLOOKUP(C8,Équipes!$A:$C,3,FALSE))","v":""},null,null,{"$f":"IF(F8=\"\",\"\",VLOOKUP(F8,Équipes!$A:$C,3,FALSE))","v":""},null,null,{"$f":"IF(I8=\"\",\"\",VLOOKUP(I8,Équipes!$A:$C,3,FALSE))","v":""}]
[null,"21:00:00",null,{"$f":"IF(C9=\"\",\"\",VLOOKUP(C9,Équipes!$A:$C,3,FALSE))","v":""},null,null,{"$f":"IF(F9=\"\",\"\",VLOOKUP(F9,Équipes!$A:$C,3,FALSE))","v":""},null,null,{"$f":"IF(I9=\"\",\"\",VLOOKUP(I9,Équipes!$A:$C,3,FALSE))","v":""}]
[null,null,null,{"$f":"IF(C10=\"\",\"\",VLOOKUP(C10,Équipes!$A:$C,3,FALSE))","v":""},null,null,{"$f":"IF(F10=\"\",\"\",VLOOKUP(F10,Équipes!$A:$C,3,FALSE))","v":""},null,null,{"$f":"IF(I10=\"\",\"\",VLOOKUP(I10,Équipes!$A:$C,3,FALSE))","v":""}]
[null,null,null,{"$f":"IF(C11=\"\",\"\",VLOOKUP(C11,Équipes!$A:$C,3,FALSE))","v":""},null,null,{"$f":"IF(F11=\"\",\"\",VLOOKUP(F11,Équipes!$A:$C,3,FALSE))","v":""},null,null,{"$f":"IF(I11=\"\",\"\",VLOOKUP(I11,Équipes!$A:$C,3,FALSE))","v":""}]
["2021-10-18","21:00:00",null,{"$f":"IF(C12=\"\",\"\",VLOOKUP(C12,Équipes!$A:$C,3,FALSE))","v":""},null,null,{"$f":"IF(F12=\"\",\"\",VLOOKUP(F12,Équipes!$A:$C,3,FALSE))","v":""},null,null,{"$f":"IF(I12=\"\",\"\",VLOOKUP(I12,Équipes!$A:$C,3,FALSE))","v":""}]
[null,null,null,{"$f":"IF(C13=\"\",\"\",VLOOKUP(C13,Équipes!$A:$C,3,FALSE))","v":""},null,null,{"$f":"IF(F13=\"\",\"\",VLOOKUP(F13,Équipes!$A:$C,3,FALSE))","v":""},null,null,{"$f":"IF(I13=\"\",\"\",VLOOKUP(I13,Équipes!$A:$C,3,FALSE))","v":""}]
[null,null,null,{"$f":"IF(C14=\"\",\"\",VLOOKUP(C14,Équipes!$A:$C,3,FALSE))","v":""},null,null,{"$f":"IF(F14=\"\",\"\",VLOOKUP(F14,Équipes!$A:$C,3,FALSE))","v":""},null,null,{"$f":"IF(I14=\"\",\"\",VLOOKUP(I14,Équipes!$A:$C,3,FALSE))","v":""}]
["2021-10-19","19:00:00",null,{"$f":"IF(C15=\"\",\"\",VLOOKUP(C15,Équipes!$A:$C,3,FALSE))","v":""},null,null,{"$f":"IF(F15=\"\",\"\",VLOOKUP(F15,Équipes!$A:$C,3,FALSE))","v":""},null,null,{"$f":"IF(I15=\"\",\"\",VLOOKUP(I15,Équipes!$A:$C,3,FALSE))","v":""}]
[null,null,null,{"$f":"IF(C16=\"\",\"\",VLOOKUP(C16,Équipes!$A:$C,3,FALSE))","v":""},null,null,{"$f":"IF(F16=\"\",\"\",VLOOKUP(F16,Équipes!$A:$C,3,FALSE))","v":""},null,null,{"$f":"IF(I16=\"\",\"\",VLOOKUP(I16,Équipes!$A:$C,3,FALSE))","v":""}]
[null,"21:00:00",null,{"$f":"IF(C17=\"\",\"\",VLOOKUP(C17,Équipes!$A:$C,3,FALSE))","v":""},null,null,{"$f":"IF(F17=\"\",\"\",VLOOKUP(F17,Équipes!$A:$C,3,FALSE))","v":""},null,null,{"$f":"IF(I17=\"\",\"\",VLOOKUP(I17,Équipes!$A:$C,3,FALSE))","v":""}]
[null,null,null,{"$f":"IF(C18=\"\",\"\",VLOOKUP(C18,Équipes!$A:$C,3,FALSE))","v":""},null,null,{"$f":"IF(F18=\"\",\"\",VLOOKUP(F18,Équipes!$A:$C,3,FALSE))","v":""},null,null,{"$f":"IF(I18=\"\",\"\",VLOOKUP(I18,Équipes!$A:$C,3,FALSE))","v":""}]
[null,null,null,{"$f":"IF(C19=\"\",\"\",VLOOKUP(C19,Équipes!$A:$C,3,FALSE))","v":""},null,null,{"$f":"IF(F19=\"\",\"\",VLOOKUP(F19,Équipes!$A:$C,3,FALSE))","v":""},null,null,{"$f":"IF(I19=\"\",\"\",VLOOKUP(I19,Équipes!$A:$C,3,FALSE))","v":""}]
["2021-10-25","21:00:00",null,{"$f":"IF(C20=\"\",\"\",VLOOKUP(C20,Équipes!$A:$C,3,FALSE))","v":""},null,null,{"$f":"IF(F20=\"\",\"\",VLOOKUP(F20,Équipes!$A:$C,3,FALSE))","v":""},null,null,{"$f":"IF(I20=\"\",\"\",VLOOKUP(I20,Équipes!$A:$C,3,FALSE))","v":""}]
[null,null,null,{"$f":"IF(C21=\"\",\"\",VLOOKUP(C21,Équipes!$A:$C,3,FALSE))","v":""},null,null,{"$f":"IF(F21=\"\",\"\",VLOOKUP(F21,Équipes!$A:$C,3,FALSE))","v":""},null,null,{"$f":"IF(I21=\"\",\"\",VLOOKUP(I21,Équipes!$A:$C,3,FALSE))","v":""}]
[null,null,null,{"$f":"IF(C22=\"\",\"\",VLOOKUP(C22,Équipes!$A:$C,3,FALSE))","v":""},null,null,{"$f":"IF(F22=\"\",\"\",VLOOKUP(F22,Équipes!$A:$C,3,FALSE))","v":""},null,null,{"$f":"IF(I22=\"\",\"\",VLOOKUP(I22,Équipes!$A:$C,3,FALSE))","v":""}]
["2021-10-26","19:00:00",null,{"$f":"IF(C23=\"\",\"\",VLOOKUP(C23,Équipes!$A:$C,3,FALSE))","v":""},null,null,{"$f":"IF(F23=\"\",\"\",VLOOKUP(F23,Équipes!$A:$C,3,FALSE))","v":""},null,null,{"$f":"IF(I23=\"\",\"\",VLOOKUP(I23,Équipes!$A:$C,3,FALSE))","v":""}]
[null,null,null,{"$f":"IF(C24=\"\",\"\",VLOOKUP(C24,Équipes!$A:$C,3,FALSE))","v":""},null,null,{"$f":"IF(F24=\"\",\"\",VLOOKUP(F24,Équipes!$A:$C,3,FALSE))","v":""},null,null,{"$f":"IF(I24=\"\",\"\",VLOOKUP(I24,Équipes!$A:$C,3,FALSE))","v":""}]
[null,"21:00:00",null,{"$f":"IF(C25=\"\",\"\",VLOOKUP(C25,Équipes!$A:$C,3,FALSE))","v":""},null,null,{"$f":"IF(F25=\"\",\"\",VLOOKUP(F25,Équipes!$A:$C,3,FALSE))","v":""},null,null,{"$f":"IF(I25=\"\",\"\",VLOOKUP(I25,Équipes!$A:$C,3,FALSE))","v":""}]
[null,null,null,{"$f":"IF(C26=\"\",\"\",VLOOKUP(C26,Équipes!$A:$C,3,FALSE))","v":""},null,null,{"$f":"IF(F26=\"\",\"\",VLOOKUP(F26,Équipes!$A:$C,3,FALSE))","v":""},null,null,{"$f":"IF(I26=\"\",\"\",VLOOKUP(I26,Équipes!$A:$C,3,FALSE))","v":""}]
[null,null,null,{"$f":"IF(C27=\"\",\"\",VLOOKUP(C27,Équipes!$A:$C,3,FALSE))","v":""},null,null,{"$f":"IF(F27=\"\",\"\",VLOOKUP(F27,Équipes!$A:$C,3,FALSE))","v":""},null,null,{"$f":"IF(I27=\"\",\"\",VLOOKUP(I27,Équipes!$A:$C,3,FALSE))","v":""}]
["2021-11-01","21:00:00",null,{"$f":"IF(C28=\"\",\"\",VLOOKUP(C28,Équipes!$A:$C,3,FALSE))","v":""},null,null,{"$f":"IF(F28=\"\",\"\",VLOOKUP(F28,Équipes!$A:$C,3,FALSE))","v":""},null,null,{"$f":"IF(I28=\"\",\"\",VLOOKUP(I28,Équipes!$A:$C,3,FALSE))","v":""}]
[null,null,null,{"$f":"IF(C29=\"\",\"\",VLOOKUP(C29,Équipes!$A:$C,3,FALSE))","v":""},null,null,{"$f":"IF(F29=\"\",\"\",VLOOKUP(F29,Équipes!$A:$C,3,FALSE))","v":""},null,null,{"$f":"IF(I29=\"\",\"\",VLOOKUP(I29,Équipes!$A:$C,3,FALSE))","v":""}]
[null,null,null,{"$f":"IF(C30=\"\",\"\",VLOOKUP(C30,Équipes!$A:$C,3,FALSE))","v":""},null,null,{"$f":"IF(F30=\"\",\"\",VLOOKUP(F30,Équipes!$A:$C,3,FALSE))","v":""},null,null,{"$f":"IF(I30=\"\",\"\",VLOOKUP(I30,Équipes!$A:$C,3,FALSE))","v":""}]
["2021-11-02","19:00:00",null,{"$f":"IF(C31=\"\",\"\",VLOOKUP(C31,Équipes!$A:$C,3,FALSE))","v":""},null,null,{"$f":"IF(F31=\"\",\"\",VLOOKUP(F31,Équipes!$A:$C,3,FALSE))","v":""},null,null,{"$f":"IF(I31=\"\",\"\",VLOOKUP(I31,Équipes!$A:$C,3,FALSE))","v":""}]
[null,null,null,{"$f":"IF(C32=\"\",\"\",VLOOKUP(C32,Équipes!$A:$C,3,FALSE))","v":""},null,null,{"$f":"IF(F32=\"\",\"\",VLOOKUP(F32,Équipes!$A:$C,3,FALSE))","v":""},null,null,{"$f":"IF(I32=\"\",\"\",VLOOKUP(I32,Équipes!$A:$C,3,FALSE))","v":""}]
[null,"21:00:00",null,{"$f":"IF(C33=\"\",\"\",VLOOKUP(C33,Équipes!$A:$C,3,FALSE))","v":""},null,null,{"$f":"IF(F33=\"\",\"\",VLOOKUP(F33,Équipes!$A:$C,3,FALSE))","v":""},null,null,{"$f":"IF(I33=\"\",\"\",VLOOKUP(I33,Équipes!$A:$C,3,FALSE))","v":""}]
[null,null,null,{"$f":"IF(C34=\"\",\"\",VLOOKUP(C34,Équipes!$A:$C,3,FALSE))","v":""},null,null,{"$f":"IF(F34=\"\",\"\",VLOOKUP(F34,Équipes!$A:$C,3,FALSE))","v":""},null,null,{"$f":"IF(I34=\"\",\"\",VLOOKUP(I34,Équipes!$A:$C,3,FALSE))","v":""}]
[null,null,null,{"$f":"IF(C35=\"\",\"\",VLOOKUP(C35,Équipes!$A:$C,3,FALSE))","v":""},null,null,{"$f":"IF(F35=\"\",\"\",VLOOKUP(F35,Équipes!$A:$C,3,FALSE))","v":""},null,null,{"$f":"IF(I35=\"\",\"\",VLOOKUP(I35,Équipes!$A:$C,3,FALSE))","v":""}]
["2021-11-08","21:00:00",null,{"$f":"IF(C36=\"\",\"\",VLOOKUP(C36,Équipes!$A:$C,3,FALSE))","v":""},null,null,{"$f":"IF(F36=\"\",\"\",VLOOKUP(F36,Équipes!$A:$C,3,FALSE))","v":""},null,null,{"$f":"IF(I36=\"\",\"\",VLOOKUP(I36,Équipes!$A:$C,3,FALSE))","v":""}]
[null,null,null,{"$f":"IF(C37=\"\",\"\",VLOOKUP(C37,Équipes!$A:$C,3,FALSE))","v":""},null,null,{"$f":"IF(F37=\"\",\"\",VLOOKUP(F37,Équipes!$A:$C,3,FALSE))","v":""},null,null,{"$f":"IF(I37=\"\",\"\",VLOOKUP(I37,Équipes!$A:$C,3,FALSE))","v":""}]
[]
["2021-11-09","19:00:00",null,{"$f":"IF(C39=\"\",\"\",VLOOKUP(C39,Équipes!$A:$C,3,FALSE))","v":""},null,null,{"$f":"IF(F39=\"\",\"\",VLOOKUP(F39,Équipes!$A:$C,3,FALSE))","v":""},null,null,{"$f":"IF(I39=\"\",\"\",VLOOKUP(I39,Équipes!$A:$C,3,FALSE))","v":""}]
[null,null,null,{"$f":"IF(C40=\"\",\"\",VLOOKUP(C40,Équipes!$A:$C,3,FALSE))","v":""},null,null,{"$f":"IF(F40=\"\",\"\",VLOOKUP(F40,Équipes!$A:$C,3,FALSE))","v":""},null,null,{"$f":"IF(I40=\"\",\"\",VLOOKUP(I40,Équipes!$A:$C,3,FALSE))","v":""}]
[null,"21:00:00",null,{"$f":"IF(C41=\"\",\"\",VLOOKUP(C41,Équipes!$A:$C,3,FALSE))","v":""},null,null,{"$f":"IF(F41=\"\",\"\",VLOOKUP(F41,Équipes!$A:$C,3,FALSE))","v":""},null,null,{"$f":"IF(I41=\"\",\"\",VLOOKUP(I41,Équipes!$A:$C,3,FALSE))","v":""}]
[null,null,null,{"$f":"IF(C42=\"\",\"\",VLOOKUP(C42,Équipes!$A:$C,3,FALSE))","v":""},null,null,{"$f":"IF(F42=\"\",\"\",VLOOKUP(F42,Équipes!$A:$C,3,FALSE))","v":""},null,null,{"$f":"IF(I42=\"\",\"\",VLOOKUP(I42,Équipes!$A:$C,3,FALSE))","v":""}]
[null,null,null,{"$f":"IF(C43=\"\",\"\",VLOOKUP(C43,Équipes!$A:$C,3,FALSE))","v":""},null,null,{"$f":"IF(F43=\"\",\"\",VLOOKUP(F43,Équipes!$A:$C,3,FALSE))","v":""},null,null,{"$f":"IF(I43=\"\",\"\",VLOOKUP(I43,Équipes!$A:$C,3,FALSE))","v":""}]
["2021-11-15","21:00:00",null,{"$f":"IF(C44=\"\",\"\",VLOOKUP(C44,Équipes!$A:$C,3,FALSE))","v":""},null,null,{"$f":"IF(F44=\"\",\"\",VLOOKUP(F44,Équipes!$A:$C,3,FALSE))","v":""},null,null,{"$f":"IF(I44=\"\",\"\",VLOOKUP(I44,Équipes!$A:$C,3,FALSE))","v":""}]
[null,null,null,{"$f":"IF(C45=\"\",\"\",VLOOKUP(C45,Équipes!$A:$C,3,FALSE))","v":""},null,null,{"$f":"IF(F45=\"\",\"\",VLOOKUP(F45,Équipes!$A:$C,3,FALSE))","v":""},null,null,{"$f":"IF(I45=\"\",\"\",VLOOKUP(I45,Équipes!$A:$C,3,FALSE))","v":""}]
[null,null,null,{"$f":"IF(C46=\"\",\"\",VLOOKUP(C46,Équipes!$A:$C,3,FALSE))","v":""},null,null,{"$f":"IF(F46=\"\",\"\",VLOOKUP(F46,Équipes!$A:$C,3,FALSE))","v":""},null,null,{"$f":"IF(I46=\"\",\"\",VLOOKUP(I46,Équipes!$A:$C,3,FALSE))","v":""}]
["2021-11-16","19:00:00",null,{"$f":"IF(C47=\"\",\"\",VLOOKUP(C47,Équipes!$A:$C,3,FALSE))","v":""},null,null,{"$f":"IF(F47=\"\",\"\",VLOOKUP(F47,Équipes!$A:$C,3,FALSE))","v":""},null,null,{"$f":"IF(I47=\"\",\"\",VLOOKUP(I47,Équipes!$A:$C,3,FALSE))","v":""}]
[null,null,null,{"$f":"IF(C48=\"\",\"\",VLOOKUP(C48,Équipes!$A:$C,3,FALSE))","v":""},null,null,{"$f":"IF(F48=\"\",\"\",VLOOKUP(F48,Équipes!$A:$C,3,FALSE))","v":""},null,null,{"$f":"IF(I48=\"\",\"\",VLOOKUP(I48,Équipes!$A:$C,3,FALSE))","v":""}]
[null,"21:00:00",null,{"$f":"IF(C49=\"\",\"\",VLOOKUP(C49,Équipes!$A:$C,3,FALSE))","v":""},null,null,{"$f":"IF(F49=\"\",\"\",VLOOKUP(F49,Équipes!$A:$C,3,FALSE))","v":""},null,null,{"$f":"IF(I49=\"\",\"\",VLOOKUP(I49,Équipes!$A:$C,3,FALSE))","v":""}]
[null,null,null,{"$f":"IF(C50=\"\",\"\",VLOOKUP(C50,Équipes!$A:$C,3,FALSE))","v":""},null,null,{"$f":"IF(F50=\"\",\"\",VLOOKUP(F50,Équipes!$A:$C,3,FALSE))","v":""},null,null,{"$f":"IF(I50=\"\",\"\",VLOOKUP(I50,Équipes!$A:$C,3,FALSE))","v":""}]
[null,null,null,{"$f":"IF(C51=\"\",\"\",VLOOKUP(C51,Équipes!$A:$C,3,FALSE))","v":""},null,null,{"$f":"IF(F51=\"\",\"\",VLOOKUP(F51,Équipes!$A:$C,3,FALSE))","v":""},null,null,{"$f":"IF(I51=\"\",\"\",VLOOKUP(I51,Équipes!$A:$C,3,FALSE))","v":""}]
["2021-11-22","21:00:00",null,{"$f":"IF(C52=\"\",\"\",VLOOKUP(C52,Équipes!$A:$C,3,FALSE))","v":""},null,null,{"$f":"IF(F52=\"\",\"\",VLOOKUP(F52,Équipes!$A:$C,3,FALSE))","v":""},null,null,{"$f":"IF(I52=\"\",\"\",VLOOKUP(I52,Équipes!$A:$C,3,FALSE))","v":""}]
[null,null,null,{"$f":"IF(C53=\"\",\"\",VLOOKUP(C53,Équipes!$A:$C,3,FALSE))","v":""},null,null,{"$f":"IF(F53=\"\",\"\",VLOOKUP(F53,Équipes!$A:$C,3,FALSE))","v":""},null,null,{"$f":"IF(I53=\"\",\"\",VLOOKUP(I53,Équipes!$A:$C,3,FALSE))","v":""}]
[null,null,null,{"$f":"IF(C54=\"\",\"\",VLOOKUP(C54,Équipes!$A:$C,3,FALSE))","v":""},null,null,{"$f":"IF(F54=\"\",\"\",VLOOKUP(F54,Équipes!$A:$C,3,FALSE))","v":""},null,null,{"$f":"IF(I54=\"\",\"\",VLOOKUP(I54,Équipes!$A:$C,3,FALSE))","v":""}]
["2021-11-23","19:00:00",null,{"$f":"IF(C55=\"\",\"\",VLOOKUP(C55,Équipes!$A:$C,3,FALSE))","v":""},null,null,{"$f":"IF(F55=\"\",\"\",VLOOKUP(F55,Équipes!$A:$C,3,FALSE))","v":""},null,null,{"$f":"IF(I55=\"\",\"\",VLOOKUP(I55,Équipes!$A:$C,3,FALSE))","v":""}]
[null,null,null,{"$f":"IF(C56=\"\",\"\",VLOOKUP(C56,Équipes!$A:$C,3,FALSE))","v":""},null,null,{"$f":"IF(F56=\"\",\"\",VLOOKUP(F56,Équipes!$A:$C,3,FALSE))","v":""},null,null,{"$f":"IF(I56=\"\",\"\",VLOOKUP(I56,Équipes!$A:$C,3,FALSE))","v":""}]
[null,"21:00:00",null,{"$f":"IF(C57=\"\",\"\",VLOOKUP(C57,Équipes!$A:$C,3,FALSE))","v":""},null,null,{"$f":"IF(F57=\"\",\"\",VLOOKUP(F57,Équipes!$A:$C,3,FALSE))","v":""},null,null,{"$f":"IF(I57=\"\",\"\",VLOOKUP(I57,Équipes!$A:$C,3,FALSE))","v":""}]
[null,null,null,{"$f":"IF(C58=\"\",\"\",VLOOKUP(C58,Équipes!$A:$C,3,FALSE))","v":""},null,null,{"$f":"IF(F58=\"\",\"\",VLOOKUP(F58,Équipes!$A:$C,3,FALSE))","v":""},null,null,{"$f":"IF(I58=\"\",\"\",VLOOKUP(I58,Équipes!$A:$C,3,FALSE))","v":""}]
[null,null,null,{"$f":"IF(C59=\"\",\"\",VLOOKUP(C59,Équipes!$A:$C,3,FALSE))","v":""},null,null,{"$f":"IF(F59=\"\",\"\",VLOOKUP(F59,Équipes!$A:$C,3,FALSE))","v":""},null,null,{"$f":"IF(I59=\"\",\"\",VLOOKUP(I59,Équipes!$A:$C,3,FALSE))","v":""}]
["2021-11-29","21:00:00",null,{"$f":"IF(C60=\"\",\"\",VLOOKUP(C60,Équipes!$A:$C,3,FALSE))","v":""},null,null,{"$f":"IF(F60=\"\",\"\",VLOOKUP(F60,Équipes!$A:$C,3,FALSE))","v":""},null,null,{"$f":"IF(I60=\"\",\"\",VLOOKUP(I60,Équipes!$A:$C,3,FALSE))","v":""}]
[null,null,null,{"$f":"IF(C61=\"\",\"\",VLOOKUP(C61,Équipes!$A:$C,3,FALSE))","v":""},null,null,{"$f":"IF(F61=\"\",\"\",VLOOKUP(F61,Équipes!$A:$C,3,FALSE))","v":""},null,null,{"$f":"IF(I61=\"\",\"\",VLOOKUP(I61,Équipes!$A:$C,3,FALSE))","v":""}]
[null,null,null,{"$f":"IF(C62=\"\",\"\",VLOOKUP(C62,Équipes!$A:$C,3,FALSE))","v":""},null,null,{"$f":"IF(F62=\"\",\"\",VLOOKUP(F62,Équipes!$A:$C,3,FALSE))","v":""},null,null,{"$f":"IF(I62=\"\",\"\",VLOOKUP(I62,Équipes!$A:$C,3,FALSE))","v":""}]
["2021-11-30","19:00:00",null,{"$f":"IF(C63=\"\",\"\",VLOOKUP(C63,Équipes!$A:$C,3,FALSE))","v":""},null,null,{"$f":"IF(F63=\"\",\"\",VLOOKUP(F63,Équipes!$A:$C,3,FALSE))","v":""},null,null,{"$f":"IF(I63=\"\",\"\",VLOOKUP(I63,Équipes!$A:$C,3,FALSE))","v":""}]
[null,null,null,{"$f":"IF(C64=\"\",\"\",VLOOKUP(C64,Équipes!$A:$C,3,FALSE))","v":""},null,null,{"$f":"IF(F64=\"\",\"\",VLOOKUP(F64,Équipes!$A:$C,3,FALSE))","v":""},null,null,{"$f":"IF(I64=\"\",\"\",VLOOKUP(I64,Équipes!$A:$C,3,FALSE))","v":""}]
[null,"21:00:00",null,{"$f":"IF(C65=\"\",\"\",VLOOKUP(C65,Équipes!$A:$C,3,FALSE))","v":""},null,null,{"$f":"IF(F65=\"\",\"\",VLOOKUP(F65,Équipes!$A:$C,3,FALSE))","v":""},null,null,{"$f":"IF(I65=\"\",\"\",VLOOKUP(I65,Équipes!$A:$C,3,FALSE))","v":""}]
[null,null,null,{"$f":"IF(C66=\"\",\"\",VLOOKUP(C66,Équipes!$A:$C,3,FALSE))","v":""},null,null,{"$f":"IF(F66=\"\",\"\",VLOOKUP(F66,Équipes!$A:$C,3,FALSE))","v":""},null,null,{"$f":"IF(I66=\"\",\"\",VLOOKUP(I66,Équipes!$A:$C,3,FALSE))","v":""}]
[null,null,null,{"$f":"IF(C67=\"\",\"\",VLOOKUP(C67,Équipes!$A:$C,3,FALSE))","v":""},null,null,{"$f":"IF(F67=\"\",\"\",VLOOKUP(F67,Équipes!$A:$C,3,FALSE))","v":""},null,null,{"$f":"IF(I67=\"\",\"\",VLOOKUP(I67,Équipes!$A:$C,3,FALSE))","v":""}]
["2021-12-06","21:00:00",null,{"$f":"IF(C68=\"\",\"\",VLOOKUP(C68,Équipes!$A:$C,3,FALSE))","v":""},null,null,{"$f":"IF(F68=\"\",\"\",VLOOKUP(F68,Équipes!$A:$C,3,FALSE))","v":""},null,null,{"$f":"IF(I68=\"\",\"\",VLOOKUP(I68,Équipes!$A:$C,3,FALSE))","v":""}]
[null,null,null,{"$f":"IF(C69=\"\",\"\",VLOOKUP(C69,Équipes!$A:$C,3,FALSE))","v":""},null,null,{"$f":"IF(F69=\"\",\"\",VLOOKUP(F69,Équipes!$A:$C,3,FALSE))","v":""},null,null,{"$f":"IF(I69=\"\",\"\",VLOOKUP(I69,Équipes!$A:$C,3,FALSE))","v":""}]

{"sheet":"Mode de fonctionnement","index":3,"n_rows":195,"n_cols":5,"rows_kept":195,"cut":false,"hidden":true,"merged":[[128,0,128,8],[126,0,126,8],[19,0,19,8],[86,0,86,8],[54,0,54,8],[72,0,72,8],[74,0,74,8],[50,0,50,8],[61,0,61,8],[91,0,91,8],[93,0,93,8],[84,0,84,8],[124,0,124,8],[99,0,99,8],[97,0,97,8],[95,0,95,8],[194,0,194,8],[32,0,32,8],[21,0,21,8],[59,0,59,8],[186,0,186,8],[192,0,192,8],[115,0,115,8],[188,0,188,8],[38,0,38,8],[34,0,34,8],[109,0,109,8],[157,0,157,8],[121,0,121,8],[119,0,119,8],[144,0,144,8],[148,0,148,8],[130,0,130,8],[134,0,134,8],[138,0,138,8],[146,0,146,8],[29,0,29,8],[48,0,48,8],[52,0,52,8],[117,0,117,8],[107,0,107,8],[46,0,46,8],[101,0,101,8],[103,0,103,8],[78,0,78,8],[82,0,82,8],[136,0,136,8],[105,0,105,8],[0,0,0,8],[44,0,44,8],[36,0,36,8],[2,0,2,8],[120,0,120,8],[111,0,111,8],[113,0,113,8],[4,0,4,8],[25,0,25,8],[9,0,9,8],[11,0,11,8],[7,0,7,8],[27,0,27,8],[6,0,6,8],[15,0,15,8],[17,0,17,8],[154,0,154,8],[169,0,169,8],[173,0,173,8],[175,0,175,8],[171,0,171,8],[155,0,155,8],[161,0,161,8],[165,0,165,8],[167,0,167,8],[159,0,159,8],[163,0,163,8],[177,0,177,8],[182,0,182,8],[179,0,179,8],[184,0,184,8],[190,0,190,8],[42,0,42,8],[55,0,55,8],[64,0,64,8],[88,0,88,8],[80,0,80,8],[76,0,76,8],[70,0,70,8],[66,0,66,8],[151,0,151,8],[152,0,152,8],[132,0,132,8],[140,0,140,8],[142,0,142,8],[150,0,150,8]]}
["          Ligue compétition mixte mardi de soir \n        Mode de fonctionnement"]
[]
["1.  PRINCIPE GÉNÉRAL"]
[]
["      Une équipe doit obligatoirement être composée d’au moins quatre joueurs formés de deux       \n      hommes et 2 femmes. Le capitaine forme son équipe et les joueurs occuperont les positions en\n      respectant le principe de l'alternance des hommes et des femmes selon l’une des 2 possibilités \n      suivantes : "]
[]
["       * 1 homme, 1 femme,  1 homme, 1 femme "]
["       * 1 femme,  1 homme, 1 femme,  1 homme "]
[]
["      L’équipe complète doit être inscrite  et la cotisation payée au plus tard avant le début des \n      activités, à défaut de quoi elle ne pourra prendre part aux activités de la ligue. "]
[]
["      Seuls les joueurs – membre en règle - âgés de 16 ou plus en date du 1er septembre précédent le \n      début de la saison peuvent remplacer ou s’inscrire à cette ligue de soir à moins de dérogation\n      accordé par le conseil d’administration. "]
[]
["      Il est interdit à une personne non membre de participer à cette ligue. "]
[]
["      La ligue fonctionne selon l'une des deux formules suivantes :  \n       * Tournoi à la ronde (round robin)\n       * Ladder  "]
[]
["      La formule utilisée est déterminée en début d'année par le responsable et les équipes qui \n      composent la ligue."]
[]
["      Les deux formules sont décrites aux items 3 et 4 du présent document."]
[]
["2.  HORAIRE"]
[]
["      Mardi 19 h et 21 h, en alternance lundi soir ou autre, si nécessaire.   "]
[]
["      La règle du 1 h 50 pour jouer une partie en 2 heures s'applique et doit être respectée en tout\n      temps sauf si avis contraire du ou des responsables de la ligue. "]
[]
["      Une équipe qui ne peut commencer un match à l’heure prévue se verra pénaliser d’un bout et \n      un point en plus de la perte du marteau pour chaque 10 minutes de retard pour un maximum de \n      2 bouts soit 20 minutes. "]
[]
["      Toutefois une équipe qui étire une partie de façon intentionnelle pour préserver une victoire se \n      verra accorder 0 point. "]
[]
[]
["3.  FORMULE DE COMPÉTITION : tournoi à la ronde (round robin)"]
[]
["3.1 Classement des équipes "]
[]
["      Aucun classement requis avec la formule du tournoi à la ronde. Il peut y avoir des sections, \n      cela dépend du nombre d’équipes et la formule retenue. "]
[]
["3.2 Pointage en saison régulière"]
[]
["      Il n’y a pas de bris d’égalité en saison régulière."]
[" "]
["      Victoire 3 pts  -  Défaite 1pt  -  Nulle 2 pts"]
[" "]
["      Une équipe qui ne se présente pas à une partie et qui n’a pas été en mesure d’aviser son\n      adversaire se verra inscrire un pointage de 0 à sa fiche et ce, peu importe la ou les raisons. "]
[]
["      Une équipe qui ne peut jouer sa partie à cause d’un nombre de joueurs insuffisant ou autres \n      raisons non admissibles à une remise d’une partie et qui aura informé son équipe adverse se \n      verra inscrire le pointage d’une défaite. "]
[]
["      Une équipe qui contrevient aux règlements de cette ligue se verra retirer tous ses points\n      (pointage 0) pour chaque partie en défaut. "]
[]
["      Advenant une égalité entre des équipes à la fin de la saison régulière, la fiche inter équipe  \n      déterminera la position. L’équipe qui a vaincu l’autre  sera classée plus haut. "]
[]
["      Si la fiche inter équipes ne permet pas le départage, deux scénarios peuvent se produire : \n"]
[]
["         deux équipes                =        une partie pour bris d’égalité "]
["         plus de deux équipes    =        tir à la mouche, une pierre brossée de chaque joueur "]
[null,null,null,null,"        "]
["      Le pointage accordé aux lancers de précision sera :"]
[]
["      Touche au cercle de 12 pieds      1 pt                            Plein 12 pieds      2 pts\n      Touche au cercle de 8 pieds        3 pts                          Plein   8 pieds      4 pts\n      Touche au cercle de 4 pieds        5 pts                          Plein   4 pieds      6 pts\n      Touche au bouton                       7 pts                          Plein bouton        8 pts"]
[]
["      Le classement final est égal au total des points cumulés en saison. Ce classement déterminera la \n      répartition des équipes lors des éliminatoires de fin de saison."]
[]
[]
["4.  FORMULE DE COMPÉTITION : ladder "]
[]
["4.1 Sections "]
[]
["      Le nombre de sections est déterminé par le nombre d’équipes inscrites. "]
[]
["4.2 Classement des équipes "]
[]
["      Pour la première ronde de la saison, le classement des équipes est basé sur le classement final \n      de la saison régulière de l’année précédente. Une équipe qui revient intacte ou qui est composée\n      d’un minimum de 3 joueurs de l’ancienne équipe, dont le capitaine,  voit son classement \n      protégé. C’est donc dire qu’elle ne pourra débuter la saison à une position inférieure que la \n      position à laquelle elle a terminé la saison précédente. Elle pourrait cependant voir sa position \n      améliorée selon le classement qui sera attribué aux nouvelles équipes.    "]
[]
["      Toutes les nouvelles équipes sont évaluées et classées par les responsables de la ligue selon \n      le nombre de joueurs remplacés, leur performance, l’expérience etc. Le classement qui en  \n      ressort est final. "]
[]
["4.3 Pointage en saison régulière"]
[]
["      Il n’y a pas de bris d’égalité en saison régulière. "]
[]
["      Une partie nulle se verra distribuer le total des points en deux. Ainsi, pour la section A par  \n      exemple : 25 / 2 = 12,5, la section B : 23 / 2 = 11,5 et ainsi de suite."]
[]
["      Voici les points alloués pour chaque section :"]
[]
["       * A   Victoire  15 pts  -  défaite  10 pts  -  nulle  12,5 pts\n       * B   Victoire  14 pts  -  défaite    9 pts  -  nulle  11,5 pts\n       * C   Victoire  13 pts  -  défaite    8 pts  -  nulle  10,5 pts\n       * D   Victoire  12 pts  -  défaite    7 pts  -  nulle    9,5 pts"]
[]
["      En début d'année et selon le nombre d'équipes dans chacune des sections, un différentiel est \n      déterminé entre les points d'une victoire et ceux d'une défaite. Ce différentiel est fixé au \n      nombre d'équipes moins 1. Ainsi s'il y a 8 équipes dans la section A, le différentiel sera de \n      8 - 1 = 7. Les points d'une défaite seront donc de 15 - 7 = 8 et ceux d'une nulle de la moitié des \n      points, 15 + 8 = 23 divisé par 2 = 11,5 points."]
[]
["      Une équipe qui ne se présente pas à une partie et qui n’a pas été en mesure d’aviser son \n      adversaire se verra inscrire un pointage de 0 à sa fiche et ce, peu importe la ou les raisons."]
[]
[]
["      Une équipe qui ne peut jouer sa partie à cause d’un nombre de joueurs insuffisant ou autres\n      raisons non admissibles à une remise d’une partie et qui aura informé son équipe adverse se \n      verra inscrire le pointage d’une défaite. "]
[]
["      Une équipe qui contrevient aux règlements de cette ligue se verra retirer tous ces points \n      (pointage 0) pour chaque partie en défaut. "]
[]
["4.4 Calcul pour le classement des équipes "]
[]
["      Un pourcentage de points est attribué à chaque ronde, soit:"]
[]
["      75% pour les rondes 1 et 2 et 100 % pour les rondes suivantes."]
[]
["      Le nombre de rondes qui détermine la durée de la saison régulière est déterminé en vertu du \n      nombre de semaines de jeu disponibles et le nombre d’équipes inscrites. "]
[]
["      En vertu des politiques de jeux du Club, une ronde se doit d’être jouée au complet et ne peut \n      être écourtée au bénéfice du calendrier du tournoi de fin de saison. "]
[]
["      À la fin de chaque ronde, un nouveau classement est établi. Advenant une égalité entre les \n      équipes d’une même section, la fiche inter équipes déterminera la position. L’équipe qui a \n      battu l’autre équipe sera de rang supérieur. "]
[]
["      Si la fiche inter équipes ne permet pas le départage, la position courante aura préséance pour \n      le classement de la prochaine ronde. "]
[]
["      Afin de descendre de section, une équipe doit avoir moins de points que la meilleure équipe \n      d’une section inférieure. Inversement, afin qu’une équipe puisse monter de section elle doit\n      avoir plus de points que l’équipe la plus faible d’une section supérieure. "]
[]
["      Le classement final est égal au total des points cumulés. Ce classement déterminera la répartition\n      des équipes lors des éliminatoires de fin de saison."]
[]
["      En cas d’égalité, la fiche inter équipes de la dernière ronde déterminera le gagnant. Si la fiche \n      inter équipes ne permet pas le départage, la position courante aura préséance pour le classement\n      final. "]
[]
["5. REPORTS DE MATCH "]
[]
["      S’il ne manque qu’un seul joueur, il n’y a pas de déplacement possible. Il y a cependant trois \n      options pour jouer la partie : "]
[]
["       * 1re  option : prendre 1 joueur remplaçant et jouer à 4. "]
["       * 2e   option : utiliser un 5e  joueur régulier qui est déjà inscrit. "]
["       * 3e   option : jouer à 3 joueurs avec les joueurs réguliers de l'équipe. "]
[]
[]
["      Avec 2 joueurs manquants, il est encore possible de jouer : on peut utiliser les 2 joueurs \n      réguliers restants et prendre 1 ou 2 remplaçants. Il n’y a pas de déplacement possible."]
[]
["      En dernier recours, il n’est possible de déplacer une partie que s'il manque 3 joueurs ou \n      plus de la même équipe. "]
[]
["      La partie reportée doit être jouée avant le dernier soir de la fin de la ronde en cours à 23 h, \n      sauf exception si le temps le permet. Cette partie peut être jouée selon les différentes heures \n      de glaces disponibles au club et la partie déplacée ne doit, en aucun cas, créer des absences dans \n      une autre ligue. "]
[]
["      Il faut aviser et avoir reçu l’approbation du responsable de la ligue et faire les réservations   \n      nécessaires. La décision du responsable de la ligue est finale et sans appel. "]
[]
["      C’est la responsabilité de l’équipe qui déplace la partie de trouver une plage horaire qui \n      conviendra aux deux équipes."]
[" "]
["      C’est la responsabilité de l’équipe adverse de valider les raisons du déplacement de la partie \n      avec l’équipe qui en fait la demande. "]
[]
["      Si l’équipe adverse ne démontre pas de bonne volonté au report de la partie, il en reviendra au \n      responsable de la ligue de déterminer le pointage de la partie non jouée. L’équipe adverse \n      pourra se voir attribuée la défaite pour manque d’esprit sportif. "]
[]
["      Dans le cas où la partie ne peut pas être reprise à temps, l’équipe qui en aura fait la demande \n      initiale se verra attribuer les points de la défaite. "]
[]
["6. JOUEURS DE REMPLACEMENT "]
[]
["      Pour être reconnue, une partie devra compter deux équipes ayant chacune deux membres de\n      leur équipe initiale. "]
[]
["6.1 Pendant la saison régulière : "]
[]
["      Une équipe ne peut avoir plus de deux (2) remplaçants. Le remplaçant joue à la position du \n      joueur manquant ou à une position inférieure. "]
[]
["      Le ou les remplaçants doivent préalablement être sélectionnés parmi :"]
[]
["        a) l’équipe en congé "]
["        b) les substituts  "]
["        c) les membres actifs du Club."]
[]
["     "]
["      Si une équipe joue à trois joueurs, l'alternance hommes / femmes doit être respectée. L’équipe \n      peut changer la position des joueurs. Par exemple, si le capitaine homme est absent, la 3e peut \n      skipper, l’autre homme jouera comme 3e et l’autre femme jouera comme 2e. L’homme lancera \n      les pierres du 1er et du 3e tandis que les 2 femmes lanceront 2 pierres à leur position."]
[]
["      Si une femme est absente, l’autre femme lancera 4 pierres et les 2 hommes lanceront chacun\n      2 pierres à leur position."]
[]
["6.2 Un joueur blessé pendant une partie "]
[]
["      Un joueur blessé peut être remplacé par n’importe quel joueur. Le joueur de remplacement \n      devra jouer à la position de premier ou deuxième. L’alternance hommes / femmes doit être \n      respectée. "]
[]
["7.  TOURNOI DE FIN DE SAISON"]
[]
["      Selon les politiques de jeux du Club, la saison régulière d’une ligue de compétition doit\n      être suivie d’un tournoi de  fin de saison (tournoi éliminatoire) incluant toutes les équipes \n      inscrites, peu importe leur classement de fin de saison régulière, à moins que l’équipe \n      elle-même ne se désiste, et ce, dans un même tournoi. "]
[]
["      La cédule d’un tournoi de fin de saison peut inclure les fins de semaine (samedi et dimanche) \n      et d’autres journées, si nécessaire."]
[]
["      La formule d’élimination du tournoi de fin de saison revient au choix discrétionnaire des   \n      responsables de la ligue, selon le temps disponible après la saison régulière et du nombre \n      d’équipes y prenant part."]
[]
["      Pour être reconnue, une partie devra compter deux équipes ayant chacune deux membres \n      de leur équipe initiale. "]
[]
["      Une équipe ne peut avoir plus d’un remplaçant. Le remplaçant joue à la position du joueur \n      manquant ou à une position inférieure. Selon qui est absent, les pierres seront jouées comme \n      suit : "]
[]
["      * si le joueur absent est un homme, l'autre homme lancera 2 pierres à la position du joueur \n         absent puis lancera 2 autres pierres à sa position; "]
[]
["      * si le joueur absent est une femme, l'autre femme lancera 2 pierres à la position du joueur \n         absent puis lancera 2 autres pierres à sa position; "]
[]
["      * les autres joueurs lanceront chacun 2 pierres à leur position. "]
[]
[]
["      Le ou les remplaçants peuvent provenir d’une équipe active lors des deux premières parties du \n      tournoi. Par la suite, la sélection devra se faire parmi les équipes éliminées sans quoi une défaite \n      sera automatique. "]
[]
["      Aucune partie nulle : s’il y a bris d’égalité, 1 bout supplémentaire sera disputé. S’il y a toujours\n      égalité après 9 bouts, il y aura des  tirs au bouton mesurés, soit deux pierres par équipe lancées \n      par deux joueurs différents, au choix. "]
[]
["      La règle du 1 h 50 pour jouer une partie en 2 heures s’applique, sauf lors des finales des \n      différentes sections. "]
[]
["8. LITIGE"]
[]
["      Durant le cours de la saison, tout conflit ou toute situation qui n’est pas couvert dans le présent\n      document pourra être soumis au responsable de la ligue. La décision sera finale et sans appel."]
[]
["9. RESPONSABLE :"]
[]
["      Pierre Jégou   514-298-4328        pierre.jegou@hotmail.com"]